bitfinex-derivatives/quotes_BNBF0:USTF0_20250305
["timestamp","ask_amount","ask_price","bid_price","bid_amount"]
[1741165478960,1.054,597.1,596.66,0.2909253]
[1741165479157,1.054,597.1,596.65,0.2909253]
[1741165479359,1.054,597.1,596.66,0.2909253]
[1741165479561,1.054,597.1,596.68,1.23379283]
[1741165479761,1.054,597.1,596.69,0.2909253]
[1741165480954,1.054,597.1,596.74,1.23379283]
[1741165481156,1.054,597.1,596.75,0.2909253]
[1741165482763,1.054,597.1,596.89,1.23379283]
[1741165483261,1.054,597.1,596.9,0.29090297]
[1741165483659,0.199,597.3,596.9,0.29090297]
[1741165484762,0.199,597.3,596.86,1.23379283]
[1741165484964,0.199,597.3,596.87,0.29092732]
[1741165486661,0.199,597.3,596.89,1.23379283]
[1741165486862,0.199,597.3,596.9,0.29092732]
[1741165489168,0.199,597.3,596.87,1.23379283]
[1741165489169,0.199,597.3,596.88,0.29092732]
[1741165489369,0.199,597.3,596.89,0.29092732]
[1741165489569,0.199,597.3,596.87,1.23379283]
[1741165490065,0.199,597.3,596.88,0.29093288]
[1741165490770,0.199,597.3,596.94,1.23379283]
[1741165490970,0.199,597.3,596.95,0.29093288]
[1741165492972,0.199,597.3,596.94,1.23379283]
[1741165493172,1.048,597.36,596.94,1.23379283]
[1741165493374,2.62551974,597.35,596.78,1.23379283]
[1741165493571,2.62551974,597.34,596.79,0.29099478]
[1741165493767,2.62551974,597.33,596.79,0.29099478]
[1741165494070,2.62549852,597.32,596.79,0.29099478]
[1741165494268,2.62549852,597.31,596.79,0.29099478]
[1741165494474,2.62549852,597.3,596.79,0.29099478]
[1741165494674,2.62549852,597.29,596.79,0.29099478]
[1741165494874,3.8212574,597.28,596.79,0.29099478]
[1741165495075,2.62549852,597.27,596.79,0.29099478]
[1741165495277,2.62549852,597.26,596.79,0.29099478]
[1741165495472,1.19575888,597.28,596.79,0.29099478]
[1741165495473,3.8212574,597.25,596.79,0.29099478]
[1741165495670,2.62549852,597.24,596.79,0.29099478]
[1741165495872,2.62549852,597.23,596.79,0.29099478]
[1741165496071,2.62549852,597.22,596.54,0.29099478]
[1741165496270,2.62549852,597.21,596.55,0.29099478]
[1741165496473,2.62549852,597.2,596.54,0.29099478]
[1741165496674,2.62549852,597.19,596.54,0.29099478]
[1741165496874,2.62549852,597.18,596.54,0.29099478]
[1741165497076,2.62549852,597.17,596.54,0.29099478]
[1741165497274,2.62549852,597.16,596.54,0.29099478]
[1741165497474,1.19575888,597.17,596.54,0.29099478]
[1741165497674,0.199,597.21,596.54,0.29099478]
[1741165497675,1.19575888,597.15,596.54,0.29099478]
[1741165498476,0.199,597.21,596.45,0.29099478]
[1741165498673,0.199,597.21,596.55,0.29099478]
[1741165498869,0.199,597.21,596.56,0.29099478]
[1741165499075,0.49054153,597.21,596.45,0.29099478]
[1741165499370,0.49054153,597.21,596.46,0.29099478]
[1741165499575,0.49054153,597.21,596.45,0.29099478]
[1741165499770,0.49054153,597.21,596.46,0.29099478]
[1741165499972,0.49054153,597.21,596.47,0.29099478]
[1741165500173,0.779,597.2,596.45,0.29099478]
[1741165500373,0.779,597.2,596.44,1.23379283]
[1741165500574,0.779,597.2,596.49,1.23379283]
[1741165500768,0.779,597.2,596.5,0.29106073]
[1741165503176,0.779,597.2,596.41,0.29106073]
[1741165503379,0.779,597.2,596.42,0.29106073]
[1741165503580,0.779,597.2,596.41,0.29106073]
[1741165503775,0.779,597.2,596.42,0.29106073]
[1741165503975,0.779,597.2,596.33,1.5691776]
[1741165504181,0.779,597.2,596.43,0.29102042]
[1741165504379,0.779,597.2,596.33,1.5691776]
[1741165504580,0.779,597.2,596.34,0.29101997]
[1741165504776,0.779,597.2,596.35,0.29101997]
[1741165504973,0.779,597.2,596.36,0.29101997]
[1741165505176,0.779,597.2,596.48,1.23379283]
[1741165505379,0.779,597.2,596.49,0.29101997]
[1741165505579,0.779,597.2,596.5,0.29101997]
[1741165505880,0.779,597.2,596.51,0.29101997]
[1741165506083,0.779,597.2,596.52,0.29101997]
[1741165506276,0.779,597.2,596.53,0.29099529]
[1741165506480,0.779,597.2,596.54,0.29099529]
[1741165506677,0.779,597.2,596.55,0.29099529]
[1741165506882,0.779,597.2,596.56,0.29099529]
[1741165507085,0.779,597.2,596.57,0.29099529]
[1741165507383,0.779,597.2,596.58,0.29099529]
[1741165507580,0.779,597.2,596.59,0.29099529]
[1741165507784,0.779,597.2,596.6,0.29099529]
[1741165508083,0.779,597.2,596.61,0.29099529]
[1741165508379,0.779,597.2,596.62,0.29099529]
[1741165508583,0.779,597.2,596.63,0.29099529]
[1741165508781,0.779,597.2,596.64,0.29099529]
[1741165508988,0.779,597.2,596.65,0.29099529]
[1741165509286,1.619,597.2,596.66,0.29099529]
[1741165509486,1.619,597.2,596.67,0.29098756]
[1741165509788,1.619,597.2,596.68,0.29098756]
[1741165509984,1.619,597.2,596.55,0.29098756]
[1741165511186,1.619,597.2,596.56,0.29094465]
[1741165511386,1.619,597.2,596.57,0.29094465]
[1741165511583,2.649,597.2,596.58,0.29094465]
[1741165511886,2.649,597.2,596.59,0.29094465]
[1741165512193,2.649,597.2,596.64,1.23379283]
[1741165512587,2.649,597.2,596.65,0.29090092]
[1741165512792,2.649,597.2,596.66,0.29090092]
[1741165512993,2.649,597.2,596.67,0.29090092]
[1741165513292,2.649,597.2,596.68,0.29090092]
[1741165513490,2.649,597.2,596.69,0.29090092]
[1741165513683,2.649,597.2,596.7,0.29090092]
[1741165513888,2.649,597.2,596.64,1.23379283]
[1741165513889,2.649,597.2,596.71,0.29090092]
[1741165514187,2.649,597.2,596.72,0.29090092]
[1741165514391,2.649,597.2,596.73,0.29090092]
[1741165514587,2.649,597.2,596.74,0.29090092]
[1741165514789,2.649,597.2,596.75,0.29090092]
[1741165514993,2.649,597.2,596.76,0.29090092]
[1741165515392,2.649,597.2,596.66,1.23379283]
[1741165515393,2.649,597.2,596.77,0.29090092]
[1741165515590,2.649,597.2,596.67,0.29090092]
[1741165515790,2.649,597.2,596.68,0.29090092]
[1741165515989,2.649,597.2,596.69,0.29090092]
[1741165516194,2.649,597.2,596.7,0.29090092]
[1741165516390,2.649,597.2,596.71,0.29090092]
[1741165516592,2.649,597.2,596.72,0.29090092]
[1741165516891,2.649,597.2,596.73,0.29090092]
[1741165517091,2.649,597.2,596.74,0.29090092]
[1741165517285,2.649,597.2,596.69,0.29090092]
[1741165517490,2.649,597.2,596.7,0.29090092]
[1741165517692,2.649,597.2,596.71,0.29090092]
[1741165517886,2.649,597.2,596.69,0.29090092]
[1741165518088,2.649,597.2,596.68,1.23379283]
[1741165518089,2.649,597.2,596.7,0.29090092]
[1741165518286,1.87,597.2,596.69,0.29090092]
[1741165519690,1.87,597.2,596.68,1.23379283]
[1741165519892,1.87,597.2,596.69,0.29096732]
[1741165520491,1.87,597.2,596.7,0.29096732]
[1741165520691,1.87,597.2,596.63,0.29096732]
[1741165521596,1.87,597.2,596.68,1.23379283]
[1741165521894,1.87,597.2,596.69,0.29096732]
[1741165523194,1.87,597.2,596.7,0.29100613]
[1741165523387,1.87,597.2,596.68,1.23379283]
[1741165523388,1.87,597.2,596.69,0.29100613]
[1741165523587,1.87,597.2,596.68,1.23379283]
[1741165523588,1.87,597.2,596.7,0.29100613]
[1741165523791,1.87,597.2,596.71,0.29100613]
[1741165523992,1.87,597.2,596.69,0.29100613]
[1741165524190,1.87,597.2,596.7,0.29100613]
[1741165524394,1.87,597.2,596.69,0.29100613]
[1741165524595,1.87,597.2,596.7,0.29100613]
[1741165524893,1.87,597.2,596.71,0.29100613]
[1741165525094,1.87,597.2,596.72,0.29100613]
[1741165525293,1.87,597.2,596.63,0.29100613]
[1741165525488,1.87,597.2,596.64,0.29100613]
[1741165525896,1.87,597.2,596.63,0.29100613]
[1741165526200,1.87,597.2,596.64,0.29100613]
[1741165526400,1.87,597.2,596.65,0.29100613]
[1741165526599,1.87,597.2,596.42,0.29152443]
[1741165526801,1.87,597.2,596.43,0.29104704]
[1741165527996,1.67335407,597.19,596.43,0.29104704]
[1741165528195,2.62453,597.18,596.43,0.29104704]
[1741165528402,2.62453,597.17,596.43,0.29104704]
[1741165528603,1.19531333,597.18,596.43,0.29104704]
[1741165529000,1.19531333,597.17,596.43,0.29104704]
[1741165529899,2.041,597.2,596.43,0.29104704]
[1741165530103,2.62401722,597.19,596.42,0.29152443]
[1741165530296,2.041,597.2,596.43,0.2910443]
[1741165530501,1.19500497,597.18,596.43,0.2910443]
[1741165530903,1.19500497,597.17,596.44,0.2910443]
[1741165531104,1.19500497,597.17,596.45,0.2910443]
[1741165531301,1.19500497,597.17,596.46,0.2910443]
[1741165531503,2.041,597.2,596.47,0.2910443]
[1741165531705,2.62359428,597.19,596.43,0.2910443]
[1741165531900,0.95086,597.18,596.42,0.29156229]
[1741165532204,1.19491633,597.18,596.43,0.29104735]
[1741165532405,2.18391633,597.17,596.43,0.29104735]
[1741165532908,3.81846174,597.16,596.43,0.29104735]
[1741165533108,2.62354541,597.15,596.18,0.29104735]
[1741165533309,2.62354541,597.14,596.19,0.29104735]
[1741165533606,1.67269234,597.13,596.2,0.29104735]
[1741165533810,2.62335068,597.12,596.21,0.29104735]
[1741165534003,2.62335068,597.11,596.21,0.29104735]
[1741165534205,2.62296696,597.1,596.21,0.29104735]
[1741165534402,1.19491633,597.09,596.21,0.29104735]
[1741165535007,1.19491633,597.08,596.21,0.29104735]
[1741165535807,0.2916197,597.14,596.21,0.29104735]
[1741165536008,2.62217397,597.13,596.21,0.29104735]
[1741165536211,2.62217397,597.12,596.21,0.29104735]
[1741165536505,2.62217397,597.11,596.21,0.29104735]
[1741165536711,2.62217397,597.1,596.21,0.29104735]
[1741165536908,2.62217397,597.09,596.18,0.29104735]
[1741165537109,2.62184934,597.08,596.19,0.29104735]
[1741165537309,1.19411952,597.09,596.2,0.29111495]
[1741165537610,2.62124617,597.08,596.21,0.29111495]
[1741165537806,1.19411952,597.08,596.22,0.29111495]
[1741165538015,1.48575633,597.08,596.23,0.29111495]
[1741165538216,1.48575633,597.08,596.24,0.29111495]
[1741165538414,1.01,597.11,596.24,0.29111495]
[1741165538609,1.01,597.11,596.25,0.29111495]
[1741165538814,1.01,597.11,596.26,0.29111495]
[1741165539210,1.01,597.11,596.27,0.29111495]
[1741165539412,1.05,597.1,596.28,0.29111495]
[1741165539811,1.05,597.1,596.29,0.29111495]
[1741165540016,1.05,597.1,596.13,0.29111495]
[1741165540210,1.05,597.1,596.14,0.29111495]
[1741165540416,1.05,597.1,596.15,0.29111495]
[1741165540616,1.05,597.1,596.16,0.29111495]
[1741165540814,0.199,597.09,596.16,0.29111495]
[1741165541016,0.199,597.09,596.17,0.29111495]
[1741165545922,0.199,597.09,595.82,0.29111495]
[1741165546118,0.199,597.09,595.81,1.23379283]
[1741165546119,0.703,597.08,595.83,0.29106641]
[1741165546424,0.703,597.08,595.84,0.62672699]
[1741165546623,0.703,597.08,595.85,0.29106641]
[1741165546829,1.387,597.08,596.22,1.23379283]
[1741165547017,1.67867714,597.08,596.23,0.29106641]
[1741165547222,1.67867714,597.08,596.24,0.29106641]
[1741165547423,1.67867714,597.08,596.25,0.29106641]
[1741165547623,1.67867714,597.08,596.26,0.29106641]
[1741165547819,1.67867714,597.08,596.22,1.23379283]
[1741165548023,1.67867714,597.08,596.23,0.29112386]
[1741165548223,1.67867714,597.08,596.24,0.29112386]
[1741165548426,1.67867714,597.08,596.25,0.29112386]
[1741165548621,1.67867714,597.08,596.26,0.29112386]
[1741165548926,1.387,597.08,596.27,0.29112386]
[1741165549122,1.387,597.08,596.28,0.29112386]
[1741165549324,1.387,597.08,596.29,0.29112386]
[1741165549525,1.387,597.08,596.24,1.23379283]
[1741165549726,1.387,597.08,596.25,0.29113201]
[1741165549927,0.29163681,597.07,596.26,0.29113201]
[1741165550119,0.29163681,597.07,596.27,0.29113201]
[1741165550324,0.29163681,597.07,596.28,0.29113201]
[1741165550519,0.29163681,597.07,596.29,0.29113201]
[1741165550731,0.29163681,597.07,596.3,0.29113201]
[1741165550921,0.29163681,597.07,596.31,0.29113201]
[1741165551131,0.29163681,597.07,596.32,0.29113201]
[1741165551421,0.29163681,597.07,596.34,1.23379283]
[1741165551623,0.29163681,597.07,596.35,0.29113201]
[1741165551821,0.29163681,597.07,596.34,1.23379283]
[1741165552128,0.29163681,597.07,596.35,0.29112951]
[1741165552427,0.29163681,597.07,596.36,0.29112951]
[1741165552727,0.29163681,597.07,596.37,0.29112951]
[1741165552923,0.29163681,597.07,596.38,0.29112951]
[1741165553121,0.29163681,597.07,596.34,1.23379283]
[1741165553324,0.29163681,597.07,596.35,0.2911261]
[1741165553528,0.29163681,597.07,596.46,1.23379283]
[1741165553727,0.29163681,597.07,596.47,0.2911261]
[1741165554528,1.387,597.08,596.47,0.2911261]
[1741165555527,1.387,597.08,596.18,0.2911261]
[1741165555723,1.387,597.08,596.19,0.2911261]
[1741165555927,1.387,597.08,596.2,0.2911261]
[1741165556125,1.387,597.08,596.21,0.2911261]
[1741165556328,1.387,597.08,596.22,0.2911261]
[1741165556524,1.387,597.08,596.17,1.23379283]
[1741165556730,1.387,597.08,596.18,0.29105346]
[1741165556935,1.387,597.08,596.19,0.29105346]
[1741165557231,1.387,597.08,596.58,1.23379283]
[1741165557425,1.387,597.08,596.59,0.29105346]
[1741165559028,1.387,597.08,596.61,1.23379283]
[1741165559332,1.387,597.08,596.62,0.29105346]
[1741165561027,0.703,597.08,596.62,0.29105346]
[1741165561636,0.703,597.08,596.51,0.29105346]
[1741165561832,0.703,597.08,596.5,1.23379283]
[1741165562030,0.703,597.08,596.51,0.29099907]
[1741165562233,1.362,597.08,596.52,0.29099907]
[1741165562532,1.362,597.08,596.53,0.29099907]
[1741165562734,1.362,597.08,596.54,0.29099907]
[1741165562942,1.362,597.08,596.55,0.29099907]
[1741165563129,1.362,597.08,596.51,0.29099907]
[1741165563335,1.362,597.08,596.52,0.29099907]
[1741165563533,1.362,597.08,596.51,0.29099907]
[1741165563933,1.362,597.08,596.63,1.23379283]
[1741165564129,1.362,597.08,596.64,0.29099907]
[1741165566336,0.659,597.08,596.65,0.29099907]
[1741165566631,0.659,597.08,596.66,0.29099907]
[1741165566835,0.659,597.08,596.39,0.29099907]
[1741165567044,0.659,597.08,596.4,0.29099907]
[1741165567228,0.659,597.08,596.39,0.29099907]
[1741165567437,0.659,597.08,596.4,0.29099907]
[1741165567633,0.659,597.08,596.39,0.29099907]
[1741165567833,0.659,597.08,596.4,0.29099907]
[1741165568033,0.659,597.08,596.39,0.29099907]
[1741165568230,0.659,597.08,596.5,1.23379283]
[1741165568635,0.659,597.08,596.51,0.29099907]
[1741165570136,0.659,597.08,596.55,1.23379283]
[1741165570332,0.659,597.08,596.56,0.29099907]
[1741165570531,0.659,597.08,596.55,1.23379283]
[1741165570735,0.659,597.08,596.57,0.29101996]
[1741165570931,0.659,597.08,596.58,0.29101996]
[1741165571138,0.659,597.08,596.56,0.29101996]
[1741165571338,0.659,597.08,596.59,0.29101996]
[1741165571640,0.659,597.08,596.6,0.29101996]
[1741165571936,0.659,597.08,596.61,0.29101996]
[1741165572131,0.659,597.08,596.58,0.29101996]
[1741165572338,0.659,597.08,596.57,1.23379283]
[1741165572535,0.659,597.08,596.58,0.29098016]
[1741165574342,0.659,597.08,596.44,0.29098016]
[1741165574646,0.659,597.08,596.45,0.29098016]
[1741165574840,0.659,597.08,596.44,0.29098016]
[1741165575042,0.659,597.08,596.45,0.29098016]
[1741165575243,0.659,597.08,596.4,0.29098016]
[1741165575443,0.659,597.08,596.41,0.29098016]
[1741165575644,1.787,597.08,596.42,0.29098016]
[1741165575840,1.787,597.08,596.43,0.29098016]
[1741165576045,1.787,597.08,596.44,0.29098016]
[1741165576240,1.787,597.08,596.46,1.23379283]
[1741165576445,1.787,597.08,596.47,0.29098016]
[1741165577047,1.787,597.08,596.48,0.29098016]
[1741165577346,1.787,597.08,596.49,0.29098016]
[1741165577650,1.787,597.08,596.5,0.29098016]
[1741165577846,1.787,597.08,596.47,0.29098016]
[1741165578146,1.787,597.08,596.48,0.29098016]
[1741165578341,1.787,597.08,596.49,0.29098016]
[1741165578549,1.787,597.08,596.5,0.29098016]
[1741165578749,1.787,597.08,596.57,1.23379283]
[1741165578948,1.787,597.08,596.58,0.29098016]
[1741165581149,1.787,597.08,596.57,1.23379283]
[1741165581355,1.787,597.08,596.58,0.29103925]
[1741165581848,1.787,597.08,596.59,0.29103925]
[1741165582051,1.787,597.08,596.6,0.29103925]
[1741165582348,1.128,597.08,596.61,0.29103925]
[1741165582551,1.128,597.08,596.54,0.29103925]
[1741165582750,1.128,597.08,596.62,0.29103925]
[1741165582957,1.128,597.08,596.63,0.29103925]
[1741165583145,1.128,597.08,596.54,0.29103925]
[1741165583345,1.128,597.08,596.64,0.29103925]
[1741165583543,1.128,597.08,596.65,0.29103925]
[1741165583749,1.128,597.08,596.54,0.29103925]
[1741165584048,1.128,597.08,596.55,0.29103925]
[1741165584248,1.128,597.08,596.54,0.29103925]
[1741165584449,1.128,597.08,596.55,0.29103925]
[1741165584842,1.128,597.08,596.56,0.29103925]
[1741165585043,1.128,597.08,596.57,0.29103925]
[1741165585241,1.128,597.08,596.41,0.29103925]
[1741165585445,1.128,597.08,596.42,0.29103925]
[1741165585644,1.848,597.08,596.41,0.29103925]
[1741165585842,1.848,597.08,596.42,0.29103925]
[1741165586143,1.848,597.08,596.43,0.29103925]
[1741165586449,1.848,597.08,596.44,0.29103925]
[1741165586649,1.848,597.08,596.41,0.29103925]
[1741165587253,1.848,597.08,596.42,0.2910068]
[1741165587449,1.848,597.08,596.43,0.2910068]
[1741165587646,1.848,597.08,596.41,0.2910068]
[1741165587846,1.848,597.08,596.42,0.2910068]
[1741165588046,1.848,597.08,596.41,0.2910068]
[1741165588253,1.848,597.08,596.4,0.29155985]
[1741165588254,1.848,597.08,596.42,0.2910068]
[1741165588653,1.848,597.08,596.4,0.29155985]
[1741165588654,1.848,597.08,596.68,1.23379283]
[1741165588853,1.848,597.08,596.69,0.2910068]
[1741165589552,1.848,597.08,596.7,0.29098673]
[1741165589743,1.848,597.08,596.69,0.29098673]
[1741165589945,1.848,597.08,596.7,0.29098673]
[1741165590152,1.848,597.08,596.69,0.29098673]
[1741165590351,1.848,597.08,596.71,0.29098673]
[1741165590553,1.848,597.08,596.72,0.29098673]
[1741165590753,1.848,597.08,596.69,0.29098673]
[1741165590953,1.848,597.08,596.7,0.29098673]
[1741165591148,1.848,597.08,596.69,0.29098673]
[1741165591652,1.848,597.08,596.72,1.23379283]
[1741165591852,1.848,597.08,596.73,0.29098673]
[1741165593959,1.848,597.08,596.72,0.29098673]
[1741165594158,1.848,597.08,596.74,0.29098673]
[1741165594357,1.848,597.08,596.75,0.29098673]
[1741165594659,1.677,597.08,596.76,0.29098673]
[1741165594857,1.677,597.08,596.77,0.29098673]
[1741165595160,1.677,597.08,596.78,0.29098673]
[1741165595658,1.677,597.08,596.79,0.29098673]
[1741165595860,1.677,597.08,596.72,0.29098673]
[1741165596063,1.677,597.08,596.73,0.29098673]
[1741165596264,1.677,597.08,596.61,0.29098673]
[1741165596563,1.677,597.08,596.62,0.29098673]
[1741165596769,1.677,597.08,596.61,0.29098673]
[1741165596961,1.677,597.08,596.62,0.29098673]
[1741165597161,1.677,597.08,596.63,0.29098673]
[1741165597365,1.677,597.08,596.61,0.29098673]
[1741165597566,1.677,597.08,596.62,0.29098673]
[1741165597763,1.677,597.08,596.61,0.29098673]
[1741165597976,1.677,597.08,596.62,0.29098673]
[1741165598267,1.677,597.08,596.63,0.29098673]
[1741165598469,1.677,597.08,596.61,0.29098673]
[1741165598672,1.677,597.08,596.62,0.29099368]
[1741165598970,1.677,597.08,596.63,0.29099368]
[1741165599164,1.677,597.08,596.61,0.29099368]
[1741165599972,1.677,597.08,596.61,1.52478651]
[1741165600166,1.677,597.08,596.62,0.29099368]
[1741165602072,1.677,597.08,596.68,1.23379283]
[1741165602372,1.677,597.08,596.69,0.29095402]
[1741165603174,1.677,597.08,596.83,1.23379283]
[1741165603372,1.677,597.08,596.84,0.29095402]
[1741165604768,0.72,597.08,596.85,0.29095402]
[1741165604971,0.72,597.08,596.72,0.29095402]
[1741165605172,0.72,597.08,596.73,0.29095402]
[1741165605377,0.72,597.08,596.72,0.29095402]
[1741165605673,0.72,597.08,596.73,0.29095402]
[1741165605873,0.72,597.08,596.72,0.29095402]
[1741165606070,0.72,597.08,596.73,0.29095402]
[1741165606273,0.72,597.08,596.74,0.29095402]
[1741165606477,0.72,597.08,596.71,1.23379283]
[1741165606478,0.72,597.08,596.72,0.29095402]
[1741165606774,0.72,597.08,596.73,0.29095402]
[1741165606969,0.72,597.08,596.72,0.29095402]
[1741165607168,0.72,597.08,596.73,0.29095402]
[1741165607366,0.72,597.08,596.71,1.23379283]
[1741165607367,0.72,597.08,596.74,0.29098097]
[1741165607668,0.72,597.08,596.75,0.29098097]
[1741165607875,0.72,597.08,596.72,0.29098097]
[1741165608072,0.72,597.08,596.73,0.29098097]
[1741165608269,0.72,597.08,596.72,0.29098097]
[1741165608575,0.72,597.08,596.71,1.23379283]
[1741165608775,0.72,597.08,596.72,0.2909825]
[1741165608973,0.72,597.08,596.39,0.2909825]
[1741165609173,0.72,597.08,596.73,0.2909825]
[1741165609376,0.72,597.08,596.74,0.2909825]
[1741165609671,0.72,597.08,596.39,0.2909825]
[1741165609987,0.72,597.08,596.55,0.29152443]
[1741165610176,0.72,597.08,596.56,0.2909825]
[1741165610486,0.72,597.08,596.57,0.2909825]
[1741165610677,0.72,597.08,596.74,1.23379283]
[1741165611074,0.72,597.08,596.75,0.2909825]
[1741165612773,0.72,597.08,596.76,0.29091967]
[1741165612973,0.72,597.08,596.75,0.29091967]
[1741165613170,0.72,597.08,596.76,0.29091967]
[1741165613375,0.72,597.08,596.72,0.29091967]
[1741165613575,0.72,597.08,596.73,0.29091967]
[1741165613774,0.72,597.08,596.74,0.29091967]
[1741165613970,0.72,597.08,596.72,0.29091967]
[1741165614175,0.72,597.08,596.73,0.29091967]
[1741165614475,0.72,597.08,596.74,0.29091441]
[1741165614671,0.72,597.08,596.75,0.29091441]
[1741165614976,0.72,597.08,596.76,0.29091441]
[1741165615177,0.72,597.08,596.72,0.29091441]
[1741165615379,0.72,597.08,596.73,0.29091441]
[1741165615677,0.171,597.16,596.74,0.29091441]
[1741165615977,0.171,597.16,596.75,0.29091441]
[1741165616177,0.171,597.16,596.62,0.29091441]
[1741165616371,0.171,597.16,596.63,0.29091441]
[1741165616576,0.171,597.16,596.64,0.29091441]
[1741165616776,0.171,597.16,596.65,0.29091441]
[1741165617077,0.171,597.16,596.66,0.29091441]
[1741165617377,0.171,597.16,596.67,0.29091441]
[1741165617578,0.171,597.16,596.68,0.29091441]
[1741165617776,0.171,597.16,596.69,0.29091441]
[1741165617979,0.171,597.16,596.7,0.29091441]
[1741165618178,0.171,597.16,596.71,0.29091441]
[1741165618379,0.171,597.16,596.72,0.29091441]
[1741165618573,0.171,597.16,596.73,0.29091441]
[1741165618772,0.171,597.16,596.74,0.29091441]
[1741165618976,0.171,597.16,596.75,0.29091441]
[1741165619273,0.171,597.16,596.81,1.23379283]
[1741165619473,0.171,597.16,596.82,0.29091441]
[1741165619778,0.171,597.16,596.83,0.29091441]
[1741165619977,0.171,597.16,596.84,0.29091441]
[1741165620173,0.171,597.16,596.82,0.29091441]
[1741165620378,0.171,597.16,596.85,0.29091441]
[1741165620574,0.171,597.16,596.86,0.29091441]
[1741165620780,0.171,597.16,596.82,0.29091441]
[1741165620974,0.171,597.16,596.83,0.29091441]
[1741165621182,0.171,597.16,596.82,0.29091441]
[1741165621477,0.171,597.16,596.84,1.23379283]
[1741165621674,0.171,597.16,596.85,0.29091441]
[1741165621878,0.908,597.21,596.85,0.29091441]
[1741165622878,0.908,597.21,596.81,0.29091441]
[1741165623079,0.908,597.21,596.82,0.29091957]
[1741165623379,0.908,597.21,596.83,0.29091957]
[1741165623581,0.908,597.21,596.81,0.29091957]
[1741165623785,0.908,597.21,596.82,0.29091957]
[1741165623979,0.908,597.21,596.81,0.29091957]
[1741165624191,0.908,597.21,596.82,0.29091957]
[1741165624576,0.908,597.21,596.78,0.29091957]
[1741165624781,0.908,597.21,596.79,0.29091957]
[1741165624981,0.908,597.21,596.78,0.29091957]
[1741165625177,0.908,597.21,596.79,0.29091957]
[1741165625382,0.908,597.21,596.8,0.29091957]
[1741165625580,0.908,597.21,596.78,0.29091957]
[1741165625883,0.908,597.21,596.79,0.29091957]
[1741165626181,0.908,597.21,596.8,0.29091957]
[1741165626386,0.908,597.21,596.78,0.29091957]
[1741165626584,0.908,597.21,596.79,0.29091957]
[1741165626777,0.908,597.21,596.76,1.23379283]
[1741165626778,0.908,597.21,596.77,0.29091957]
[1741165628786,0.908,597.21,596.78,0.29091957]
[1741165628986,0.908,597.21,596.79,0.29091957]
[1741165629185,0.908,597.21,596.8,0.29091957]
[1741165629387,0.908,597.21,596.81,0.29091957]
[1741165629686,0.908,597.21,596.82,0.29091957]
[1741165629887,0.825,597.24,596.7,0.29091957]
[1741165630086,0.825,597.24,596.71,0.29091957]
[1741165630292,0.825,597.24,596.72,0.29091957]
[1741165630592,0.825,597.24,596.74,1.23379283]
[1741165630795,0.825,597.24,596.75,0.29091957]
[1741165632085,0.825,597.24,596.76,0.29091957]
[1741165632286,0.825,597.24,596.77,0.29091957]
[1741165632480,0.825,597.24,596.74,1.23379283]
[1741165632481,0.825,597.24,596.78,0.29091957]
[1741165632685,0.825,597.24,596.81,1.23379283]
[1741165632886,0.825,597.24,596.82,0.29091957]
[1741165633089,0.825,597.24,596.83,0.29091957]
[1741165633287,0.825,597.24,596.84,0.29091957]
[1741165633589,0.825,597.24,596.82,0.29091957]
[1741165633801,0.825,597.24,596.83,0.29091957]
[1741165633984,0.825,597.24,596.81,1.23379283]
[1741165633985,0.825,597.24,596.84,0.29091957]
[1741165634190,0.825,597.24,596.82,0.29091957]
[1741165635092,0.825,597.24,596.93,1.23379283]
[1741165635390,0.825,597.24,596.94,0.29091957]
[1741165635988,0.724,597.27,596.94,0.29091957]
[1741165637088,0.724,597.27,596.69,0.29091957]